fUSD/lending_fUSD_20250930
["ID","MTS","AMOUNT","RATE_DAILY","PERIOD"]
[388528632,1759234256125,-499.44621469,0.00019178,2]
[388528633,1759234256134,-500.0,0.00019178,2]
[388528634,1759234256143,-500.0,0.00019178,2]
[388528635,1759234256153,-500.0,0.00019178,2]
[388528636,1759234256163,-8271.17,0.00019178,2]
[388528637,1759234256173,-500.0,0.00019178,2]
[388528638,1759234256183,-500.0,0.00019178,2]
[388528639,1759234256192,-2196.28,0.00019178,2]
[388528640,1759234256202,-4306.25,0.00019178,2]
[388528641,1759234256211,-500.0,0.00019178,2]
[388528642,1759234256223,-1763.69,0.00019178,2]
[388528643,1759234256233,-3197.72,0.00019178,2]
[388528644,1759234256242,-563.91,0.00019178,2]
[388528645,1759234256252,-151.0,0.00019178,2]
[388528646,1759234256262,-1351.58,0.00019178,2]
[388528647,1759234256272,-151.0,0.00019178,2]
[388528648,1759234256282,-500.0,0.00019178,2]
[388528649,1759234256296,-4827.59,0.00019178,2]
[388528650,1759234256308,-151.0,0.00019178,2]
[388528651,1759234256318,-151.0,0.00019178,2]
[388528652,1759234256328,-151.0,0.00019178,2]
[388528653,1759234256339,-2854.59,0.00019178,2]
[388528654,1759234256349,-151.0,0.00019178,2]
[388528655,1759234256359,-500.0,0.00019178,2]
[388528656,1759234256370,-151.0,0.00019178,2]
[388528657,1759234256380,-151.0,0.00019178,2]
[388528658,1759234256390,-1351.91,0.00019178,2]
[388528659,1759234256399,-151.0,0.00019178,2]
[388528660,1759234256409,-151.0,0.00019178,2]
[388528661,1759234256419,-151.0,0.00019178,2]
[388528662,1759234256428,-151.0,0.00019178,2]
[388528663,1759234256438,-151.0,0.00019178,2]
[388528664,1759234256448,-151.0,0.00019178,2]
[388528665,1759234256458,-151.0,0.00019178,2]
[388528666,1759234256468,-151.0,0.00019178,2]
[388528667,1759234256477,-151.0,0.00019178,2]
[388528668,1759234256487,-151.0,0.00019178,2]
[388528669,1759234256497,-151.0,0.00019178,2]
[388528670,1759234256506,-500.0,0.00019178,2]
[388528671,1759234256517,-1477.49,0.00019178,2]
[388528672,1759234256527,-151.0,0.00019178,2]
[388528673,1759234256536,-3187.48,0.00019178,2]
[388528674,1759234256546,-151.0,0.00019178,2]
[388528675,1759234256556,-151.0,0.00019178,2]
[388528676,1759234256566,-11810.4,0.00019178,2]
[388528677,1759234256575,-3656.68,0.00019178,2]
[388528678,1759234256586,-250.385761,0.00019178,2]
[388528679,1759234256596,-2562.68,0.00019178,2]
[388528680,1759234256606,-3521.03,0.00019178,2]
[388528681,1759234256616,-2005.31,0.00019178,2]
[388528682,1759234256626,-500.0,0.00019178,2]
[388528683,1759234256635,-500.0,0.00019178,2]
[388528684,1759234256644,-980.59,0.00019178,2]
[388528685,1759234256653,-6055.25,0.00019178,2]
[388528686,1759234256662,-500.0,0.00019178,2]
[388528687,1759234256672,-151.0,0.00019178,2]
[388528688,1759234256692,-843.89,0.00019178,2]
[388528689,1759234256704,-151.0,0.00019178,2]
[388528690,1759234256713,-710.13,0.00019178,2]
[388528691,1759234256723,-151.0,0.00019178,2]
[388528692,1759234256733,-1748.68,0.00019178,2]
[388528693,1759234256742,-821.43,0.00019178,2]
[388528694,1759234256752,-500.0,0.00019178,2]
[388528695,1759234256763,-500.0,0.00019178,2]
[388528696,1759234256772,-500.0,0.00019178,2]
[388528697,1759234256782,-5550.49,0.00019178,2]
[388528698,1759234256792,-517.57,0.00019178,2]
[388528699,1759234256801,-500.0,0.00019178,2]
[388528700,1759234256812,-4813.77,0.00019178,2]
[388528701,1759234256823,-500.0,0.00019178,2]
[388528702,1759234256833,-500.0,0.00019178,2]
[388528703,1759234256843,-4457.99,0.00019178,2]
[388528704,1759234256852,-158.628354,0.00019178,2]
[388528705,1759234256862,-500.0,0.00019178,2]
[388528706,1759234256872,-500.0,0.00019178,2]
[388528707,1759234256881,-500.0,0.00019178,2]
[388528708,1759234256891,-5661.57,0.00019178,2]
[388528709,1759234256901,-1422.36,0.00019178,2]
[388528710,1759234256911,-500.0,0.00019178,2]
[388528711,1759234256920,-500.0,0.00019178,2]
[388528712,1759234256930,-500.0,0.00019178,2]
[388528713,1759234256940,-500.0,0.00019178,2]
[388528714,1759234256949,-2721.28,0.00019178,2]
[388528715,1759234256961,-500.0,0.00019178,2]
[388528716,1759234256970,-500.0,0.00019178,2]
[388528717,1759234256981,-500.0,0.00019178,2]
[388528718,1759234256991,-500.0,0.00019178,2]
[388528719,1759234257002,-500.0,0.00019178,2]
[388528720,1759234257012,-3886.98,0.00019178,2]
[388528721,1759234257022,-254.64,0.00019178,2]
[388528722,1759234257032,-500.0,0.00019178,2]
[388528723,1759234257041,-3305.16,0.00019178,2]
[388528724,1759234257051,-3536.51,0.00019178,2]
[388528725,1759234257060,-500.0,0.00019178,2]
[388528726,1759234257070,-560.1,0.00019178,2]
[388528727,1759234257087,-500.0,0.00019178,2]
[388528728,1759234257097,-151.0,0.00019178,2]
[388528729,1759234257107,-151.0,0.00019178,2]
[388528730,1759234257118,-151.0,0.00019178,2]
[388528731,1759234257128,-761.79,0.00019178,2]
[388528732,1759234257138,-151.0,0.00019178,2]
[388528733,1759234257148,-151.0,0.00019178,2]
[388528734,1759234257158,-151.0,0.00019178,2]
[388528735,1759234257168,-293.360852,0.00019178,2]
[388528736,1759234257179,-1406.33,0.00019178,2]
[388528737,1759234257190,-3921.97,0.00019178,2]
[388528738,1759234257200,-500.0,0.00019178,2]
[388528739,1759234257211,-3377.43,0.00019178,2]
[388528740,1759234257221,-1571.05,0.00019178,2]
[388528741,1759234257231,-500.0,0.00019178,2]
[388528742,1759234257242,-5427.38,0.00019178,2]
[388528743,1759234257251,-2968.4,0.00019178,2]
[388528744,1759234257261,-1248.43,0.00019178,2]
[388528745,1759234257272,-767.99,0.00019178,2]
[388528746,1759234257282,-2708.65,0.00019178,2]
[388528747,1759234257296,-500.0,0.00019178,2]
[388528748,1759234257306,-257.59452018,0.00019178,2]
[388528749,1759234257316,-1549.3,0.00019178,2]
[388528750,1759234257327,-151.0,0.00019178,2]
[388528751,1759234257338,-500.0,0.00019178,2]
[388528752,1759234257348,-500.0,0.00019178,2]
[388528753,1759234257358,-3096.04,0.00019178,2]
[388528754,1759234257368,-4313.48,0.00019178,2]
[388528755,1759234257380,-500.0,0.00019178,2]
[388528756,1759234257390,-5116.29,0.00019178,2]
[388528757,1759234257400,-3314.63,0.00019178,2]
[388528758,1759234257409,-4394.77,0.00019178,2]
[388528759,1759234257419,-500.0,0.00019178,2]
[388528760,1759234257430,-500.0,0.00019178,2]
[388528761,1759234257444,-500.0,0.00019178,2]
[388528762,1759234257454,-3234.61,0.00019178,2]
[388528763,1759234257463,-3082.73,0.00019178,2]
[388528764,1759234257473,-869.78,0.00019178,2]
[388528765,1759234257483,-257.27735958,0.00019178,2]
[388528766,1759234257500,-500.0,0.00019178,2]
[388528767,1759234257510,-3764.56,0.00019178,2]
[388528768,1759234257521,-500.0,0.00019178,2]
[388528769,1759234257534,-500.0,0.00019178,2]
[388528770,1759234257544,-528.35,0.00019178,2]
[388528771,1759234257553,-151.0,0.00019178,2]
[388528772,1759234257564,-500.0,0.00019178,2]
[388528773,1759234257574,-151.0,0.00019178,2]
[388528774,1759234257584,-500.0,0.00019178,2]
[388528775,1759234257594,-3768.83,0.00019178,2]
[388528776,1759234257604,-151.0,0.00019178,2]
[388528777,1759234257614,-563.81,0.00019178,2]
[388528778,1759234257624,-500.0,0.00019178,2]
[388528779,1759234257635,-155.496877,0.00019178,2]
[388528780,1759234257646,-8256.36,0.00019178,2]
[388528781,1759234257655,-500.0,0.00019178,2]
[388528782,1759234257665,-643.62,0.00019178,2]
[388528783,1759234257675,-1096.95,0.00019178,2]
[388528784,1759234257686,-151.0,0.00019178,2]
[388528785,1759234257696,-838.63,0.00019178,2]
[388528786,1759234257710,-151.0,0.00019178,2]
[388528787,1759234257722,-151.0,0.00019178,2]
[388528788,1759234257731,-237.70539,0.00019178,2]
[388528789,1759234257742,-500.0,0.00019178,2]
[388528790,1759234257752,-962.14,0.00019178,2]
[388528791,1759234257762,-500.0,0.00019178,2]
[388528792,1759234257774,-151.0,0.00019178,2]
[388528793,1759234257785,-151.0,0.00019178,2]
[388528794,1759234257800,-500.0,0.00019178,2]
[388528795,1759234257810,-2999.47,0.00019178,2]
[388528796,1759234257820,-151.0,0.00019178,2]
[388528797,1759234257830,-151.0,0.00019178,2]
[388528798,1759234257842,-151.0,0.00019178,2]
[388528799,1759234257852,-2904.51,0.00019178,2]
[388528800,1759234257862,-500.0,0.00019178,2]
[388528801,1759234257872,-151.0,0.00019178,2]
[388528802,1759234257882,-151.0,0.00019178,2]
[388528803,1759234257894,-2438.84,0.00019178,2]
[388528804,1759234257904,-151.0,0.00019178,2]
[388528805,1759234257920,-151.0,0.00019178,2]
[388528806,1759234257930,-5164.47,0.00019178,2]
[388528807,1759234257941,-151.0,0.00019178,2]
[388528808,1759234257951,-151.0,0.00019178,2]
[388528809,1759234257961,-151.0,0.00019178,2]
[388528810,1759234257971,-151.0,0.00019178,2]
[388528811,1759234257981,-239.38325454,0.00019178,2]
[388528812,1759234257991,-185.993016,0.00019178,2]
[388528813,1759234258001,-151.0,0.00019178,2]
[388528814,1759234258011,-500.0,0.00019178,2]
[388528815,1759234258021,-1522.94,0.00019178,2]
[388528816,1759234258033,-272.66166338,0.00019178,2]
[388528817,1759234258043,-1427.41,0.00019178,2]
[388528818,1759234258054,-582.24,0.00019178,2]
[388528819,1759234258064,-9998.35,0.00019178,2]
[388528820,1759234258075,-500.0,0.00019178,2]
[388528821,1759234258087,-10434.37,0.00019178,2]
[388528822,1759234258097,-151.0,0.00019178,2]
[388528823,1759234258107,-151.0,0.00019178,2]
[388528824,1759234258119,-500.0,0.00019178,2]
[388528825,1759234258129,-3007.06,0.00019178,2]
[388528826,1759234258139,-151.0,0.00019178,2]
[388528827,1759234258150,-512.86,0.00019178,2]
[388528828,1759234258161,-151.0,0.00019178,2]
[388528829,1759234258171,-151.0,0.00019178,2]
[388528830,1759234258180,-154.984812,0.00019178,2]
[388528831,1759234258190,-2191.69,0.00019178,2]
[388528832,1759234258200,-500.0,0.00019178,2]
[388528833,1759234258211,-265.424058,0.00019178,2]
[388528834,1759234258221,-500.0,0.00019178,2]
[388528835,1759234258232,-151.0,0.00019178,2]
[388528836,1759234258242,-1281.24,0.00019178,2]
[388528837,1759234258252,-500.0,0.00019178,2]
[388528838,1759234258263,-500.0,0.00019178,2]
[388528839,1759234258273,-7103.28,0.00019178,2]
[388528840,1759234258283,-151.0,0.00019178,2]
[388528841,1759234258298,-151.0,0.00019178,2]
[388528842,1759234258308,-151.0,0.00019178,2]
[388528843,1759234258318,-151.0,0.00019178,2]
[388528844,1759234258328,-5320.8,0.00019178,2]
[388528845,1759234258339,-500.0,0.00019178,2]
[388528846,1759234258349,-1239.09,0.00019178,2]
[388528847,1759234258360,-151.0,0.00019178,2]
[388528848,1759234258372,-151.0,0.00019178,2]
[388528849,1759234258382,-151.0,0.00019178,2]
[388528850,1759234258392,-151.0,0.00019178,2]
[388528851,1759234258401,-160.509519,0.00019178,2]
[388528852,1759234258411,-151.0,0.00019178,2]
[388528853,1759234258421,-151.0,0.00019178,2]
[388528854,1759234258430,-500.0,0.00019178,2]
[388528855,1759234258440,-151.0,0.00019178,2]
[388528856,1759234258450,-151.0,0.00019178,2]
[388528857,1759234258461,-151.0,0.00019178,2]
[388528858,1759234258471,-151.0,0.00019178,2]
[388528859,1759234258481,-151.0,0.00019178,2]
[388528860,1759234258491,-184.593684,0.00019178,2]
[388528861,1759234258501,-500.0,0.00019178,2]
[388528862,1759234258512,-4827.63,0.00019178,2]
[388528863,1759234258522,-5282.87,0.00019178,2]
[388528864,1759234258531,-3470.89,0.00019178,2]
[388528865,1759234258540,-3373.4,0.00019178,2]
[388528866,1759234258550,-151.0,0.00019178,2]
[388528867,1759234258563,-151.0,0.00019178,2]
[388528868,1759234258573,-500.0,0.00019178,2]
[388528869,1759234258583,-151.0,0.00019178,2]
[388528870,1759234258594,-838.99,0.00019178,2]
[388528871,1759234258603,-500.0,0.00019178,2]
[388528872,1759234258613,-500.0,0.00019178,2]
[388528873,1759234258623,-500.0,0.00019178,2]
[388528874,1759234258633,-500.0,0.00019178,2]
[388528875,1759234258643,-151.0,0.00019178,2]
[388528876,1759234258652,-3707.3,0.00019178,2]
[388528877,1759234258662,-2110.21,0.00019178,2]
[388528878,1759234258671,-4683.67,0.00019178,2]
[388528879,1759234258682,-450.57643129,0.00019178,2]
[388528880,1759234258691,-623.63,0.00019178,2]
[388528881,1759234258701,-263.106623,0.00019178,2]
[388528882,1759234258710,-263.106623,0.00019178,2]
[388528883,1759234258721,-263.106623,0.00019178,2]
[388528884,1759234258732,-151.0,0.00019178,2]
[388528885,1759234258743,-263.106623,0.00019178,2]
[388528886,1759234258753,-151.0,0.00019178,2]
[388528887,1759234258763,-4715.23,0.00019178,2]
[388528888,1759234258773,-500.0,0.00019178,2]
[388528889,1759234258783,-151.0,0.00019178,2]
[388528890,1759234258793,-263.106623,0.00019178,2]
[388528891,1759234258803,-1414.51,0.00019178,2]
[388528892,1759234258812,-151.0,0.00019178,2]
[388528893,1759234258822,-263.106623,0.00019178,2]
[388528894,1759234258832,-500.0,0.00019178,2]
[388528895,1759234258843,-1102.26,0.00019178,2]
[388528896,1759234258853,-263.106623,0.00019178,2]
[388528897,1759234258863,-151.0,0.00019178,2]
[388528898,1759234258874,-263.106623,0.00019178,2]
[388528899,1759234258884,-151.0,0.00019178,2]
[388528900,1759234258895,-151.0,0.00019178,2]
[388528901,1759234258905,-263.106623,0.00019178,2]
[388528902,1759234258915,-151.0,0.00019178,2]
[388528903,1759234258925,-263.106623,0.00019178,2]
[388528904,1759234258935,-6049.61,0.00019178,2]
[388528905,1759234258946,-447.14386621,0.00019178,2]
[388528906,1759234258956,-263.106623,0.00019178,2]
[388528907,1759234258966,-4371.8,0.00019178,2]
[388528908,1759234258977,-263.106623,0.00019178,2]
[388528909,1759234258987,-636.8051511,0.00019178,2]
[388528910,1759234258997,-263.106623,0.00019178,2]
[388528911,1759234259007,-771.21,0.00019178,2]
[388528912,1759234259018,-263.106623,0.00019178,2]
[388528913,1759234259028,-500.0,0.00019178,2]
[388528914,1759234259038,-850.17,0.00019178,2]
[388528915,1759234259048,-21881.73,0.00019178,2]
[388528916,1759234259058,-667.28,0.00019178,2]
[388528917,1759234259071,-263.106623,0.00019178,2]
[388528918,1759234259080,-500.0,0.00019178,2]
[388528919,1759234259090,-263.106623,0.00019178,2]
[388528920,1759234259100,-151.0,0.00019178,2]
[388528921,1759234259111,-500.0,0.00019178,2]
[388528922,1759234259122,-151.0,0.00019178,2]
[388528923,1759234259132,-3946.37,0.00019178,2]
[388528924,1759234259142,-500.0,0.00019178,2]
[388528925,1759234259152,-3236.62,0.00019178,2]
[388528926,1759234259162,-884.84,0.00019178,2]
[388528927,1759234259172,-1875.42,0.00019178,2]
[388528928,1759234259182,-500.0,0.00019178,2]
[388528929,1759234259191,-500.0,0.00019178,2]
[388528930,1759234259202,-500.0,0.00019178,2]
[388528931,1759234259212,-530.05,0.00019178,2]
[388528932,1759234259223,-1333.05,0.00019178,2]
[388528933,1759234259233,-500.0,0.00019178,2]
[388528934,1759234259243,-500.0,0.00019178,2]
[388528935,1759234259253,-4079.45,0.00019178,2]
[388528936,1759234259263,-2585.98,0.00019178,2]
[388528937,1759234259274,-5536.35,0.00019178,2]
[388528938,1759234259285,-500.0,0.00019178,2]
[388528939,1759234259298,-1056.77,0.00019178,2]
[388528940,1759234259308,-853.5,0.00019178,2]
[388528941,1759234259318,-3722.37,0.00019178,2]
[388528942,1759234259328,-595.71,0.00019178,2]
[388528943,1759234259338,-500.0,0.00019178,2]
[388528944,1759234259349,-610.86,0.00019178,2]
[388528945,1759234259359,-3447.1,0.00019178,2]
[388528946,1759234259370,-1263.4,0.00019178,2]
[388528947,1759234259380,-5491.61,0.00019178,2]
[388528948,1759234259390,-20441.84,0.00019178,2]
[388528949,1759234259400,-500.0,0.00019178,2]
[388528950,1759234259410,-500.0,0.00019178,2]
[388528951,1759234259420,-500.0,0.00019178,2]
[388528952,1759234259430,-500.0,0.00019178,2]
[388528953,1759234259440,-1646.56,0.00019178,2]
[388528954,1759234259451,-500.0,0.00019178,2]
[388528955,1759234259461,-500.0,0.00019178,2]
[388528956,1759234259471,-1051.09,0.00019178,2]
[388528957,1759234259481,-500.0,0.00019178,2]
[388528958,1759234259491,-578.45,0.00019178,2]
[388528959,1759234259501,-500.0,0.00019178,2]
[388528960,1759234259511,-500.0,0.00019178,2]
[388528961,1759234259522,-909.9,0.00019178,2]
[388528962,1759234259532,-500.0,0.00019178,2]
[388528963,1759234259541,-654.29,0.00019178,2]
[388528964,1759234259551,-500.0,0.00019178,2]
[388528965,1759234259561,-3444.74,0.00019178,2]
[388528966,1759234259572,-4722.87,0.00019178,2]
[388528967,1759234259582,-2658.8,0.00019178,2]
[388528968,1759234259594,-18709.12,0.00019178,2]
[388528969,1759234259604,-500.0,0.00019178,2]
[388528970,1759234259613,-3134.29,0.00019178,2]
[388528971,1759234259623,-2683.16,0.00019178,2]
[388528972,1759234259633,-160.0,0.00019178,2]
[388528973,1759234259643,-160.0,0.00019178,2]
[388528974,1759234259652,-906.72,0.00019178,2]
[388528975,1759234259662,-160.0,0.00019178,2]
[388528976,1759234259673,-302.05390825,0.00019178,2]
[388528977,1759234259683,-500.0,0.00019178,2]
[388528978,1759234259694,-939.21,0.00019178,2]
[388528979,1759234259706,-9891.35,0.00019178,2]
[388528980,1759234259717,-500.0,0.00019178,2]
[388528981,1759234259728,-151.0,0.00019178,2]
[388528982,1759234259739,-500.0,0.00019178,2]
[388528983,1759234259749,-151.0,0.00019178,2]
[388528984,1759234259759,-500.0,0.00019178,2]
[388528985,1759234259770,-547.87,0.00019178,2]
[388528986,1759234259781,-500.0,0.00019178,2]
[388528987,1759234259791,-500.0,0.00019178,2]
[388528988,1759234259802,-500.0,0.00019178,2]
[388528989,1759234259812,-500.0,0.00019178,2]
[388528990,1759234259822,-500.0,0.00019178,2]
[388528991,1759234259833,-606.92,0.00019178,2]
[388528992,1759234259843,-500.0,0.00019178,2]
[388528993,1759234259854,-859.44,0.00019178,2]
[388528994,1759234259864,-1333.63,0.00019178,2]
[388528995,1759234259874,-500.0,0.00019178,2]
[388528996,1759234259886,-2641.02,0.00019178,2]
[388528997,1759234259898,-610.88,0.00019178,2]
[388528998,1759234259909,-7857.99,0.00019178,2]
[388528999,1759234259919,-1369.56,0.00019178,2]
[388529000,1759234259929,-500.0,0.00019178,2]
[388529001,1759234259940,-500.0,0.00019178,2]
[388529002,1759234259950,-822.88,0.00019178,2]
[388529003,1759234260264,-524.47,0.00019178,2]
[388529004,1759234260294,-500.0,0.00019178,2]
[388529005,1759234260305,-500.0,0.00019178,2]
[388529006,1759234260315,-500.0,0.00019178,2]
[388529007,1759234260326,-1266.06,0.00019178,2]
[388529008,1759234260338,-500.0,0.00019178,2]
[388529009,1759234260348,-500.0,0.00019178,2]
[388529010,1759234260358,-1660.41,0.00019178,2]
[388529011,1759234260369,-500.0,0.00019178,2]
[388529012,1759234260380,-500.0,0.00019178,2]
[388529013,1759234260390,-500.0,0.00019178,2]
[388529014,1759234260400,-500.0,0.00019178,2]
[388529015,1759234260409,-500.0,0.00019178,2]
[388529016,1759234260419,-513.53,0.00019178,2]
[388529017,1759234260429,-562.73,0.00019178,2]
[388529018,1759234260439,-6521.78,0.00019178,2]
[388529019,1759234260448,-500.0,0.00019178,2]
[388529020,1759234260458,-894.5,0.00019178,2]
[388529021,1759234260468,-6567.22,0.00019178,2]
[388529022,1759234260478,-500.0,0.00019178,2]
[388529023,1759234260489,-2971.04,0.00019178,2]
[388529024,1759234260499,-151.0,0.00019178,2]
[388529025,1759234260509,-155.144596,0.00019178,2]
[388529026,1759234260519,-151.0,0.00019178,2]
[388529027,1759234260530,-4350.11,0.00019178,2]
[388529028,1759234260540,-500.0,0.00019178,2]
[388529029,1759234260549,-151.0,0.00019178,2]
[388529030,1759234260559,-962.91,0.00019178,2]
[388529031,1759234260568,-151.0,0.00019178,2]
[388529032,1759234260578,-6449.44,0.00019178,2]
[388529033,1759234260588,-500.0,0.00019178,2]
[388529034,1759234260598,-500.0,0.00019178,2]
[388529035,1759234260607,-151.0,0.00019178,2]
[388529036,1759234260617,-151.0,0.00019178,2]
[388529037,1759234260627,-2394.98,0.00019178,2]
[388529038,1759234260636,-2602.936919,0.00019178,2]
[388529039,1759234260646,-6386.46,0.00019178,2]
[388529040,1759234260656,-151.0,0.00019178,2]
[388529041,1759234260665,-2602.936919,0.00019178,2]
[388529042,1759234260675,-151.0,0.00019178,2]
[388529043,1759234260685,-2602.936919,0.00019178,2]
[388529044,1759234260695,-151.0,0.00019178,2]
[388529045,1759234260705,-500.0,0.00019178,2]
[388529046,1759234260714,-2602.936919,0.00019178,2]
[388529047,1759234260724,-500.0,0.00019178,2]
[388529048,1759234260734,-158.450619,0.00019178,2]
[388529049,1759234260743,-2602.936919,0.00019178,2]
[388529050,1759234260753,-2602.936919,0.00019178,2]
[388529051,1759234260763,-2602.936919,0.00019178,2]
[388529052,1759234260775,-596.77,0.00019178,2]
[388529053,1759234260785,-500.0,0.00019178,2]
[388529054,1759234260795,-2602.936919,0.00019178,2]
[388529055,1759234260806,-1184.43,0.00019178,2]
[388529056,1759234260816,-2813.82,0.00019178,2]
[388529057,1759234260828,-3598.9,0.00019178,2]
[388529058,1759234260840,-154.562114,0.00019178,2]
[388529059,1759234260849,-1341.38,0.00019178,2]
[388529060,1759234260858,-500.0,0.00019178,2]
[388529061,1759234260869,-3705.73,0.00019178,2]
[388529062,1759234260880,-3509.89,0.00019178,2]
[388529063,1759234260890,-1011.43,0.00019178,2]
[388529064,1759234260900,-500.0,0.00019178,2]
[388529065,1759234260909,-5536.09,0.00019178,2]
[388529066,1759234260919,-500.0,0.00019178,2]
[388529067,1759234260929,-2474.54,0.00019178,2]
[388529068,1759234260938,-1213.43,0.00019178,2]
[388529069,1759234260950,-151.0,0.00019178,2]
[388529070,1759234260961,-5310.31,0.00019178,2]
[388529071,1759234260971,-151.0,0.00019178,2]
[388529072,1759234260981,-593.33,0.00019178,2]
[388529073,1759234260991,-151.0,0.00019178,2]
[388529074,1759234261002,-500.0,0.00019178,2]
[388529075,1759234261012,-2602.936919,0.00019178,2]
[388529076,1759234261022,-500.0,0.00019178,2]
[388529077,1759234261033,-500.0,0.00019178,2]
[388529078,1759234261044,-2602.936919,0.00019178,2]
[388529079,1759234261054,-2602.936919,0.00019178,2]
[388529080,1759234261065,-2602.936919,0.00019178,2]
[388529081,1759234261075,-500.0,0.00019178,2]
[388529082,1759234261087,-151.0,0.00019178,2]
[388529083,1759234261099,-151.0,0.00019178,2]
[388529084,1759234261110,-2602.936919,0.00019178,2]
[388529085,1759234261120,-1725.05,0.00019178,2]
[388529086,1759234261130,-155.958739,0.00019178,2]
[388529087,1759234261140,-2602.936919,0.00019178,2]
[388529088,1759234261150,-500.0,0.00019178,2]
[388529089,1759234261160,-2602.936919,0.00019178,2]
[388529090,1759234261169,-2602.936919,0.00019178,2]
[388529091,1759234261179,-500.0,0.00019178,2]
[388529092,1759234261189,-598.72,0.00019178,2]
[388529093,1759234261199,-500.0,0.00019178,2]
[388529094,1759234261209,-503.69,0.00019178,2]
[388529095,1759234261219,-151.0,0.00019178,2]
[388529096,1759234261228,-151.0,0.00019178,2]
[388529097,1759234261238,-151.0,0.00019178,2]
[388529098,1759234261248,-578.715792,0.00019178,2]
[388529099,1759234261257,-3023.56,0.00019178,2]
[388529100,1759234261267,-578.715792,0.00019178,2]
[388529101,1759234261277,-151.0,0.00019178,2]
[388529102,1759234261287,-578.715792,0.00019178,2]
[388529103,1759234261301,-2513.02,0.00019178,2]
[388529104,1759234261311,-151.0,0.00019178,2]
[388529105,1759234261320,-500.0,0.00019178,2]
[388529106,1759234261330,-578.715792,0.00019178,2]
[388529107,1759234261341,-151.0,0.00019178,2]
[388529108,1759234261350,-243.987485,0.00019178,2]
[388529109,1759234261360,-500.0,0.00019178,2]
[388529110,1759234261370,-578.715792,0.00019178,2]
[388529111,1759234261380,-578.715792,0.00019178,2]
[388529112,1759234261390,-510.0,0.00019178,2]
[388529113,1759234261400,-548.83,0.00019178,2]
[388529114,1759234261410,-2675.98,0.00019178,2]
[388529115,1759234261420,-578.715792,0.00019178,2]
[388529116,1759234261430,-578.715792,0.00019178,2]
[388529117,1759234261439,-7825.37,0.00019178,2]
[388529118,1759234261448,-578.715792,0.00019178,2]
[388529119,1759234261458,-578.715792,0.00019178,2]
[388529120,1759234261467,-595.52,0.00019178,2]
[388529121,1759234261477,-500.0,0.00019178,2]
[388529122,1759234261486,-578.715792,0.00019178,2]
[388529123,1759234261496,-578.715792,0.00019178,2]
[388529124,1759234261505,-500.0,0.00019178,2]
[388529125,1759234261515,-578.715792,0.00019178,2]
[388529126,1759234261524,-578.715792,0.00019178,2]
[388529127,1759234261533,-7012.73,0.00019178,2]
[388529128,1759234261543,-500.0,0.00019178,2]
[388529129,1759234261553,-578.715792,0.00019178,2]
[388529130,1759234261563,-578.715792,0.00019178,2]
[388529131,1759234261573,-1477.53,0.00019178,2]